Cogmind - Beta 17 @@@ ROGUE MODE // 2026.07.26 @ 12:52:21 Player: teag2 Result: Destroyed by G-34 Mercenary with Small Laser Performance ------------- Evolutions (0) 0 Regions Visited (1) 200 Robots Destroyed (23) 115 Value Destroyed (540) 540 Prototype IDs (2) 40 Alien Tech Used (0) 0 Bonus (0) 0 TOTAL SCORE: 895 Bonus ------- None Cogmind --------- Core Integrity 0/250 Matter 288/300 Energy 91/100 System Corruption 0% Temperature Cool (6) Movement Treading (160) Location -10/Materials Parts ------- > --- POWER (1) -------- (None) > --- PROPULSION (2) --- Light Treads Light Treads > --- UTILITY (2) ------ Improved Heat Sink Large Storage Unit > --- WEAPON (2) ------- Medium Laser Light Assault Rifle > --- INVENTORY (15) --- Light Ion Engine Light Treads Aluminum Leg Aluminum Leg Wheel Compact Wheel Heat Sink Huge Storage Unit High-capacity Matter Pod (130) Improved Terrain Scanner Light Armor Plating Small Laser Light Assault Rifle Datajack Peak State ------------ > --- POWER ------------ Light Ion Engine > --- PROPULSION ------- Aluminum Leg Aluminum Leg > --- UTILITY ---------- Improved Heat Sink Small Storage Unit > --- WEAPON ----------- EM Pulse Gun Medium Laser > --- INVENTORY -------- Ion Engine Light Treads Light Treads Wheel Compact Wheel Heat Sink Signal Interpreter Improved Terrain Scanner [Rating: 10] Favorites ----------- Power Light Ion Engine Engine Light Ion Engine Propulsion Light Treads Treads Light Treads Leg Aluminum Leg Utility Improved Heat Sink Device Improved Heat Sink Storage Large Storage Unit Weapon EM Pulse Gun Energy Gun EM Pulse Gun Ballistic Gun Light Assault Rifle Build | -11 -10 ------- Run | Yrd Mat Slots Evolved . | . . Power . | . . Propulsion . | . . Utility . | . . Weapon . | . . Parts Attached 11 | 1 10 Power 1 | . 1 Engine 1 | . 1 Core . | . . Reactor . | . . Propulsion 2 | . 2 Treads 2 | . 2 Leg . | . . Wheel . | . . Hover . | . . Flight . | . . Utility 4 | . 4 Device 2 | . 2 Storage 2 | . 2 Processor . | . . Hackware . | . . Protection . | . . Artifact . | . . Weapon 4 | 1 3 Energy Gun 3 | 1 2 Energy Cannon . | . . Ballistic Gun 1 | . 1 Ballistic Cannon . | . . Launcher . | . . Special Weapon . | . . Impact Weapon . | . . Slashing Weapon . | . . Piercing Weapon . | . . Special Melee Weapon . | . . Unidentified Prototypes . | . . Parts Lost 4 | . 4 Power 1 | . 1 Propulsion . | . . Utility . | . . Weapon 3 | . 3 Highest Loss Streak 2 | . 2 To Critical Strikes . | . . Average Backups 10 | 6 10 Power 1 | 1 1 Propulsion 4 | 4 4 Utility 2 | . 2 Weapon 1 | 1 1 Tool/Special . | . . Unused Backups 15 | . 15 Power 1 | . 1 Propulsion 5 | . 5 Utility 5 | . 5 Weapon 3 | . 3 Tool/Special 1 | . 1 Average Slot Usage (%) 96 | . 96 Engine 13 | . 13 Treads 22 | . 22 Leg 4 | . 4 Device 12 | . 12 Storage 14 | . 14 Energy Gun 27 | . 27 Peak Build Rating 10 | 6 10 Average Rating 9 | 6 9 On Entrance 6 | 6 6 Avg Prop Armor Cover (%) . | . . Naked Turns . | . . Heaviest Build 88 | 12 88 Greatest Support 40 | 20 40 Greatest Overweight (x) 2 | . 2 Average Overweight (x) . | . . Largest Inventory Capacity 25 | 8 25 Average Capacity 16 | 8 16 Most Carried 15 | 6 15 Average Carried 10 | 6 10 Final Capacity 15 | 8 15 Final Carried 14 | 6 14 Class Distribution -------------------- 100% | Mutant Dominant Class ---------------- Mutant | -10/Materials Resources | -11 -10 ----------- Run | Yrd Mat Matter Collected 526 | 174 352 Remotely . | . . Salvage Created 739 | . 739 Parts 44 | . 44 Haulers Intercepted 1 | . 1 Recyclers Shooed . | . . Parts Field Recycled . | . . Retrieved Matter . | . . Parts Self-Destructed . | . . Prevented . | . . Parts Restored . | . . Kills | -11 -10 ------- Run | Yrd Mat Combat Hostiles Destroyed 17 | . 17 Guns 16 | . 16 AOE 1 | . 1 Classes Destroyed 7 | . 7 Worker 1 | . 1 Builder 1 | . 1 Tunneler 1 | . 1 Hauler 1 | . 1 Watcher 2 | . 2 Swarmer 6 | . 6 Grunt 11 | . 11 Best Kill Streak 5 | . 5 Combat Bots Only 4 | . 4 Max Kills in Single Turn 2 | . 2 Gunslinging . | . . Exploded 1 | . 1 Melee . | . . Uniques/NPCs Destroyed . | . . Combat | -11 -10 -------- Run | Yrd Mat Hostile Shots Fired 91 | . 91 Missed 24 | . 24 Hits 67 | . 67 Projectile 67 | . 67 Critical Strikes 2 | . 2 Damage Taken 815 | . 815 Core 258 | . 258 Absorbed by Shields . | . . Regen/Repaired (Parts) 127 | . 127 Core Remaining (%) 100 | 100 . Volleys Fired 59 | . 59 Largest 2 | . 2 Hottest 90 | . 90 Shots Fired 118 | . 118 Gun 118 | . 118 Cannon . | . . Launcher . | . . Special . | . . Kinetic 7 | . 7 Thermal 24 | . 24 Explosive . | . . Electromagnetic 87 | . 87 Robot Hit Streak 8 | . 8 Robot Miss Streak 6 | . 6 Penetration Max . | . . Secondary Targets . | . . Shots Hit Robots 67 | . 67 Core Hits 33 | . 33 Critical Kills . | . . Critical Parts Destroyed 1 | . 1 Critical Strikes 3 | . 3 Burn 1 | . 1 Destroy 1 | . 1 Corrupt 1 | . 1 Melee Attacks . | . . Impact . | . . Slashing . | . . Piercing . | . . Sneak Attacks . | . . Combat Hostiles . | . . Follow-up Attacks . | . . Damage Inflicted 1216 | . 1216 Guns 881 | . 881 Cannons . | . . Explosions 318 | . 318 Melee . | . . Ramming 17 | . 17 Kinetic 61 | . 61 Thermal 493 | . 493 Explosive . | . . Electromagnetic 645 | . 645 Impact . | . . Slashing . | . . Piercing . | . . Highest Corruption . | . . Average Corruption . | . . Corruption Purged . | . . Corruption Blocked . | . . Overload Shots . | . . Overflow Damage 12 | . 12 Projectiles . | . . Explosions 12 | . 12 Melee . | . . Knockbacks . | . . Impact . | . . Kinetic . | . . Secondary . | . . Self-Inflicted Damage 38 | . 38 Shots 1 | . 1 Rammed 2 | . 2 Targets Rammed 5 | . 5 Kicked 3 | . 3 Crushed . | . . Highest Temperature 228 | . 228 Average Temperature 72 | . 72 Received Heat Transfer 408 | . 408 Siege Activations . | . . Martial Activations . | . . Shielding Activations . | . . Robots Disrupted . | . . Combat Hostiles . | . . Robots Corrupted . | . . Combat Hostiles . | . . Parts Fried 2 | . 2 Impact Corruptions . | . . Robots Melted . | . . Combat Hostiles . | . . Parts Melted . | . . Heat Transferred 942 | . 942 Parts Sabotaged . | . . Parts Stolen . | . . Parts Stripped . | . . Power Chain Reactions 4 | . 4 Alert | -11 -10 ------- Run | Yrd Mat Maximum Alert Level . | . . Low Security (%) 100 | 100 100 Level 1 . | . . Level 2 . | . . Level 3 . | . . Level 4 . | . . Level 5 . | . . High Security . | . . Max Security . | . . Peak Influence 146 | . 146 Initial . | . . Average 50 | . 50 Influence Increases 544 | . 544 Destroy 0b10 Robot/C 340 | . 340 Destroy 0b10 Robot/NC 30 | . 30 Destroy Leader 96 | . 96 Successful Hack 3 | . 3 Select Force Hacks 30 | . 30 Disable Machine 30 | . 30 Destroy Structure 15 | . 15 Influence Decreases 420 | . 420 Time Decay 380 | . 380 Lost Part 40 | . 40 Squads Dispatched 4 | . 4 Investigation 2 | . 2 Extermination . | . . Reinforcement 2 | . 2 Assault . | . . Garrison . | . . Intercept . | . . Searches Triggered . | . . Construction Impeded . | . . Haulers Reinforced . | . . Active Scanning Responses . | . . Cargo Convoy Interrupts . | . . Stealth | -11 -10 --------- Run | Yrd Mat Distress Signals 1 | . 1 Communications Jammed . | . . Distress Signals . | . . Times Spotted 25 | . 25 Peak Tracking Total 5 | . 5 Tactical Retreats . | . . Traps | -11 -10 ------- Run | Yrd Mat Traps Triggered 5 | . 5 Indirectly . | . . Trap Hack Attempts . | . . Triggered . | . . Disarmed . | . . Reprogrammed . | . . Reused . | . . Traps Extracted . | . . Installed . | . . Triggered . | . . Machines | -11 -10 ---------- Run | Yrd Mat Machines Disabled 2 | . 2 Max in Single Turn 2 | . 2 Machines Repaired . | . . Machines Dismantled . | . . Machines Sabotaged . | . . Overloaded Fab Kills . | . . Hacking | -11 -10 --------- Run | Yrd Mat Machines Accessed 8 | . 8 Terminals 6 | . 6 Fabricators . | . . Repair Stations 1 | . 1 Recycling Units 1 | . 1 Scanalyzers . | . . Garrison Access . | . . Total Hacks 23 | . 23 Successful 17 | . 17 Failed 6 | . 6 Catastrophic 1 | . 1 Database Lockouts . | . . Manual 15 | . 15 Terminals 15 | . 15 Fabricators . | . . Repair Stations 6 | . 6 Recycling Units 2 | . 2 Scanalyzers . | . . Garrison Access . | . . Terminal Hacks 1 | . 1 Prototype ID Bank 1 | . 1 Fabricator Hacks . | . . Repair Station Hacks 6 | . 6 Scan Component 3 | . 3 Repair 3 | . 3 Recycling Unit Hacks 1 | . 1 Report Inventory 1 | . 1 Scanalyzer . | . . Garrison Access Hacks . | . . Unauthorized Hacks 9 | . 9 Terminals 8 | . 8 Botnet 2 | . 2 Skim 6 | . 6 Fabricators . | . . Repair Stations . | . . Recycling Units 1 | . 1 Tunnel 1 | . 1 Scanalyzers . | . . Garrison Access . | . . Data Cores Recovered . | . . Used . | . . Hacking Detections 7 | . 7 Full Trace Events 1 | . 1 Feedback Events . | . . Feedback Blocked . | . . Robot Schematics Acquired . | . . Robots Built . | . . Authchips . | . . Time . | . . Total Robot Build Rating . | . . Part Schematics Acquired . | . . Parts Built . | . . Authchips . | . . Time . | . . Total Part Build Rating . | . . Part Studies Acquired . | . . Parts Repaired 3 | . 3 Time 78 | . 78 Parts Recycled . | . . Recycled Matter . | . . Retrieved Matter . | . . Retrieved Components . | . . Parts Scanalyzed . | . . Part Schematics Acquired . | . . Parts Damaged . | . . Bothacking | -11 -10 ------------ Run | Yrd Mat Used RIF Installer . | . . Robots Hacked . | . . Non-combat . | . . Combat . | . . Robot Hacks Applied . | . . Relay Couplers Released . | . . Fabnet Peak Effective % . | . . Robots Rewired . | . . Allies Hacked . | . . Hacks Repelled . | . . Allies | -11 -10 -------- Run | Yrd Mat Total Allies . | . . Largest Group . | . . Highest-Rated Group . | . . Highest-Rated Ally . | . . Total Orders . | . . Ally Attacks . | . . Total Damage . | . . Kills . | . . Allies Corrupted . | . . Allies Melted . | . . Intel | -11 -10 ------- Run | Yrd Mat Active Infowar (turns) . | . . Robot Analysis Total . | . . Derelict Logs Recovered . | . . Drone Launches . | . . Drone Recoveries . | . . Exploration | -11 -10 ------------- Run | Yrd Mat Turns Passed 1802 | 2 1800 Spaces Moved 657 | 1 656 Core . | . . Treads 439 | . 439 Legs 218 | 1 217 Wheels . | . . Hover . | . . Flight . | . . Fastest Speed 120 | 120 120 Average Speed 170 | 120 170 Slowest Speed 320 | 120 320 Overloaded Moves . | . . Propulsion Burnouts . | . . Robots Hopped . | . . Potential Cave-ins . | . . Cave-ins Triggered . | . . Exploration Rate (%) 49 | 1 97 Regions Visited 1 Branch Regions . Pre-discovered Areas 1 | . 1 Known Exits Taken . | . . Unknown Exits Taken 1 | 1 . Scrap Searched . | . . Spaces Dug . | . . Terrain Destroyed 13 | . 13 Melee . | . . Projectile . | . . AOE 13 | . 13 Terrain Rammed . | . . Walls Destroyed . | . . Machines Disabled . | . . Actions | -11 -10 --------- Run | Yrd Mat Total 1216 | 1 1215 Wait 452 | . 452 Move 656 | . 656 Hop . | . . Pick Up 20 | . 20 Fast Attach 4 | . 4 Attach 10 | . 10 Detach . | . . Swap 8 | 1 7 Drop 2 | . 2 Fire 59 | . 59 Melee . | . . Ram . | . . Kick 3 | . 3 Crush 2 | . 2 Escape Stasis . | . . Rewire . | . . Trap . | . . Miscellaneous . | . . Route ------- -11/Scrapyard -10/Materials (discovered 6 exits: *Mat x3 / *Min x2 / Sub) History --------- Turn | Location | Event 3 | -11/Scrapyard | Discovered new exit (range 0) 3 | -11/Scrapyard | Entered Materials 167 | -10/Materials | Discovered new exit (range 13) 271 | -10/Materials | Discovered new exit (range 10) 314 | -10/Materials | Build established: Mutant 480 | -10/Materials | Discovered new exit (range 7) 503 | -10/Materials | Derelicts attacked the area 1037 | -10/Materials | Discovered new exit (range 16) 1110 | -10/Materials | Repaired EM Pulse Gun 1138 | -10/Materials | Repaired Lgt. Treads 1166 | -10/Materials | Repaired Lgt. Treads 1189 | -10/Materials | Discovered new exit (range 10) 1278 | -10/Materials | Core integrity fell below 50% 1630 | -10/Materials | Loaded intel: 1 repair station location 1767 | -10/Materials | Identified exit to Subcaves 1767 | -10/Materials | Learned location of 2 exits from Materials 1785 | -10/Materials | Core integrity fell below 20% 1791 | -10/Materials | Identified exit to Materials 1791 | -10/Materials | Identified exit to Mines 1803 | -10/Materials | Destroyed by G-34 Mercenary with Small Laser Last Messages --------------- G-34 Mercenary destroyed. G-34 Mercenary misfires. G-34 Mercenary destroyed. Acquired 50 matter. Acquired Sml. Laser. Acquired 42 matter. >> SKIM: Loading Materials repair station intel (x1)... O-16 Technician suffers critical hit (Burn). >> SKIM: Stored Materials entrances (x3). Acquired 48 matter. >> SKIM: Loading 1 Materials exit... >> SKIM: Stored Materials exits (x2). Critical hit (Burn: +37). EM Pulse Gun destroyed. G-47 Trooper suffers critical hit (Destroy). Destroyed Lgt. Nuclear Core. >> SKIM: Loading 2 Materials zones... Ion Engine destroyed. G-47 Trooper destroyed. Map ----- +----------------------------------------------------+ | ??????????# ## """ #??# #### | | ??????######## ## #??# #??# | | ??????# # #########??############### | | ??????# """ # #???????????????# | | ??????# "T"=# #???????????????# "" [ | | ??????# " "*+ #???????????????# "T | | ??????#[ #= #???????????????# "" """ | | ??????# # #???????????????# """ | | ??????###+#### #???????????????#!!! """ | | ????????# #??# #???????????????#!!! | | ????????# #??# #???????????????#!! | | ????????#*#??# #???????????????#####+#### | | ??#######+#### #?????????????????# | | ??# ! ## #?????????????????# | | ??# !T ## #?????????????????# | | ??# """ ## #?????????????????# | | ??# """"" ## #?????????????????# | | ??# """"" ## #?????????????????## | | ??# """"" ## #??????????????????# | | ??# """ ## ##########?????????# | | ??# ## # #?????????# | | ??#####+###### # #?????????# ## | | ????# #### # #???????? # | | ????# ! g# #??????#"" # | | ????# %;[ #??????#|| # | | ????# !!!! #@! = #??????#"" < # | | ????# ! %######## ! #??????#|| # | | ###### !##??????# #??????#"" # | | # T #* =#???????# #??????#" # | | # # = #???????##########???????### ##% | | #! + #??????????????????????????# | | # =#! #?????????????##???????????# | | # [# #????????????? #??????????? | | # #= #??????????"""" ############ | | # #=% #?????????""""" # | | # [# "#????????""""" # | | # # ##???????? # | | ###### #???????? """"" # ! T | | ????## #??????# """"" # | | ?????# #??????# """"" # ######### | | ????## ##?????# %+ & #????? | | ????# ################ %& ####????? | | ????# % +????? | | ????# > ^ ###+###+#### #????? | | ????# ^ ##=%=[% # #????? | | ????# ##########+##### =% = [ # ###### | | ????## ##??????# ## # | | ?????# #???????# ## """"""" # | | ?????# #???????# " " ## """"""" # | | ?????# #???????# "R" ## """"""" + | +----------------------------------------------------+ Best States ------------- Heat Dissipation 39 Energy Generation 10 Energy Capacity 250 Matter Stores 300 Matter Capacity 300 Sight Range 16 Terrain Scan Density 10 Evasion (%) 55 Recoil Reduction 2 Item Schematics ----------------- None Robot Schematics ------------------ None Fabricated ------------ Nothing Repaired ---------- EM Pulse Gun | 28% | -10/Materials Lgt. Treads | 59% | -10/Materials Lgt. Treads | 72% | -10/Materials Studied --------- None Alien Tech Used ----------------- None Achievements -------------- None Challenges ------------ None Game ------ Seed StructuralEfficiencyWheel Manual? 0 Play Time 00:16:42 Cumulative 71.4 hours Start 2026.07.26 @ 11:25:20 End 2026.07.26 @ 12:52:21 Sessions 3 Manual Loads 0 Difficulty Rogue Special Mode None Game No. 51 Rogue 50 Adventurer 1 Explorer 0 Win Type - Total 4 Types 3/0/0/1/0/0/0/0/0/0 Lore% 42 Gallery% 47 Achievement% 47 Wizard Run 0 Options --------- Layout 1 ASCII 0 Keyboard 0 Movement Numpad Keybinds 0 Fullscreen 1 Font 32/SmallcapsGlow Map View 50x35 Zoom Use 0% Tactical HUD 0 Map Filters NONE Filters NONE Steam 1 RUN: 170c6b1b-f0f5-48d9-adf4-9e903ca7f752